[Event "Early-Titled-Tuesday-Blitz-April-23-2024"]
[Site "Chess.com"]
[Date "2024.04.23"]
[Round "3"]
[White "FischerKasparow"]
[Black "Tol_Tol"]
[Result "0-1"]
[WhiteElo "2109"]
[BlackElo "2383"]
[TimeControl "180+1"]
[EndTime "8:29:57 PDT"]
[Termination "Tol_Tol won by checkmate"]

1. e4 {[%clk 0:03:00.9]} 1... c5 {[%clk 0:03:00]} 2. Nf3 {[%clk 0:02:58.1]} 2...
Nc6 {[%clk 0:03:00.2]} 3. d4 {[%clk 0:02:58]} 3... cxd4 {[%clk 0:03:00.6]} 4.
Nxd4 {[%clk 0:02:58.6]} 4... Nf6 {[%clk 0:03:01.3]} 5. Nc3 {[%clk 0:02:58.5]}
5... e5 {[%clk 0:03:01.9]} 6. Ndb5 {[%clk 0:02:58.4]} 6... d6 {[%clk 0:03:02.5]}
7. Bg5 {[%clk 0:02:57]} 7... a6 {[%clk 0:03:02.9]} 8. Na3 {[%clk 0:02:56]} 8...
b5 {[%clk 0:03:03.5]} 9. Nd5 {[%clk 0:02:56]} 9... Be7 {[%clk 0:03:03.4]} 10.
Bxf6 {[%clk 0:02:55.9]} 10... Bxf6 {[%clk 0:03:04.3]} 11. c3 {[%clk 0:02:56.2]}
11... Bg5 {[%clk 0:03:04]} 12. Nc2 {[%clk 0:02:56]} 12... Rb8 {[%clk 0:03:04.7]}
13. Ncb4 {[%clk 0:02:54]} 13... Nxb4 {[%clk 0:03:03]} 14. Nxb4 {[%clk
0:02:54.9]} 14... Bb7 {[%clk 0:03:03.6]} 15. Bd3 {[%clk 0:02:52.9]} 15... a5
{[%clk 0:03:01.9]} 16. Bxb5+ {[%clk 0:02:45.4]} 16... Ke7 {[%clk 0:02:57.1]} 17.
Nc6+ {[%clk 0:02:39.1]} 17... Bxc6 {[%clk 0:02:56.3]} 18. Bxc6 {[%clk 0:02:40]}
18... Rxb2 {[%clk 0:02:56]} 19. O-O {[%clk 0:02:39.4]} 19... Qb6 {[%clk
0:02:52.4]} 20. Bd5 {[%clk 0:02:35.1]} 20... g6 {[%clk 0:02:21.1]} 21. g3 {[%clk
0:02:25.4]} 21... Rf8 {[%clk 0:02:06.7]} 22. h4 {[%clk 0:02:18.6]} 22... Bh6
{[%clk 0:02:02.2]} 23. Rb1 {[%clk 0:02:07.6]} 23... f5 {[%clk 0:01:57.4]} 24.
Rxb2 {[%clk 0:01:57.3]} 24... Qxb2 {[%clk 0:01:57.4]} 25. Qd3 {[%clk 0:01:45.2]}
25... f4 {[%clk 0:01:49.2]} 26. Qc4 {[%clk 0:01:36.9]} 26... Qb6 {[%clk
0:01:39.4]} 27. Qc6 {[%clk 0:01:22.6]} 27... Qxc6 {[%clk 0:01:34.1]} 28. Bxc6
{[%clk 0:01:23.5]} 28... Rc8 {[%clk 0:01:27]} 29. Bd5 {[%clk 0:01:20.4]} 29...
Rxc3 {[%clk 0:01:26.3]} 30. Bg8 {[%clk 0:01:19.9]} 30... fxg3 {[%clk 0:01:22.7]}
31. fxg3 {[%clk 0:01:19.3]} 31... Rxg3+ {[%clk 0:01:22.3]} 32. Kh2 {[%clk
0:01:18.3]} 32... Bf4 {[%clk 0:01:22]} 33. Kh1 {[%clk 0:01:14]} 33... Rh3+
{[%clk 0:01:16.1]} 34. Kg2 {[%clk 0:01:13.9]} 34... Rxh4 {[%clk 0:01:16.4]} 35.
Rb1 {[%clk 0:01:09.9]} 35... h5 {[%clk 0:01:07]} 36. Rb7+ {[%clk 0:01:04.9]}
36... Kf6 {[%clk 0:01:07]} 37. Bd5 {[%clk 0:01:03.5]} 37... Rh2+ {[%clk
0:01:04.7]} 38. Kg1 {[%clk 0:01:00.2]} 38... Kg5 {[%clk 0:00:57.3]} 39. Rg7
{[%clk 0:00:56]} 39... Rh3 {[%clk 0:00:53.1]} 40. Bf7 {[%clk 0:00:54.3]} 40...
Rg3+ {[%clk 0:00:53.2]} 41. Kf2 {[%clk 0:00:53.3]} 41... Kf6 {[%clk 0:00:54.1]}
42. Rh7 {[%clk 0:00:52.3]} 42... h4 {[%clk 0:00:46.1]} 43. Be8 {[%clk
0:00:46.2]} 43... h3 {[%clk 0:00:45.2]} 44. a4 {[%clk 0:00:34.7]} 44... g5
{[%clk 0:00:32.4]} 45. Rf7+ {[%clk 0:00:33.7]} 45... Ke6 {[%clk 0:00:32.5]} 46.
Rh7 {[%clk 0:00:29.4]} 46... g4 {[%clk 0:00:23.2]} 47. Bd7+ {[%clk 0:00:29.2]}
47... Kf6 {[%clk 0:00:22.8]} 48. Bxg4 {[%clk 0:00:28.8]} 48... Rxg4 {[%clk
0:00:19.7]} 49. Rxh3 {[%clk 0:00:29.7]} 49... Rg7 {[%clk 0:00:17.5]} 50. Rh8
{[%clk 0:00:27.6]} 50... Rb7 {[%clk 0:00:17.1]} 51. Rf8+ {[%clk 0:00:27.3]}
51... Ke7 {[%clk 0:00:17.4]} 52. Ra8 {[%clk 0:00:26.9]} 52... Rb4 {[%clk
0:00:17.7]} 53. Rxa5 {[%clk 0:00:25.2]} 53... Rxe4 {[%clk 0:00:18.4]} 54. Kf3
{[%clk 0:00:25]} 54... Ke6 {[%clk 0:00:19.1]} 55. Ra8 {[%clk 0:00:24.7]} 55...
Re3+ {[%clk 0:00:19.1]} 56. Kf2 {[%clk 0:00:24.1]} 56... Ra3 {[%clk 0:00:18.6]}
57. a5 {[%clk 0:00:25]} 57... Kf5 {[%clk 0:00:18.6]} 58. a6 {[%clk 0:00:25.9]}
58... Ke4 {[%clk 0:00:18.9]} 59. Ke2 {[%clk 0:00:21.6]} 59... Ra2+ {[%clk
0:00:19.8]} 60. Kd1 {[%clk 0:00:20.1]} 60... Kd3 {[%clk 0:00:19.2]} 61. Ke1
{[%clk 0:00:19.5]} 61... Be3 {[%clk 0:00:19.5]} 62. Kf1 {[%clk 0:00:19.1]} 62...
Rf2+ {[%clk 0:00:19.9]} 63. Ke1 {[%clk 0:00:18.6]} 63... Rg2 {[%clk 0:00:20.4]}
64. Rg8 {[%clk 0:00:14.8]} 64... Rxg8 {[%clk 0:00:19.8]} 65. a7 {[%clk
0:00:12.4]} 65... Rg1# {[%clk 0:00:19]} 0-1

[Event "Early-Titled-Tuesday-Blitz-April-23-2024"]
[Site "Chess.com"]
[Date "2024.04.23"]
[Round "3"]
[White "Ati1517"]
[Black "Rdeux42"]
[Result "0-1"]
[WhiteElo "2243"]
[BlackElo "2417"]
[TimeControl "180+1"]
[EndTime "8:30:01 PDT"]
[Termination "Rdeux42 won by resignation"]

1. e4 {[%clk 0:03:00.9]} 1... c5 {[%clk 0:02:59.3]} 2. Nf3 {[%clk 0:03:00.1]}
2... d6 {[%clk 0:02:59.8]} 3. d4 {[%clk 0:03:00.6]} 3... cxd4 {[%clk 0:03:00.4]}
4. Nxd4 {[%clk 0:03:01.4]} 4... Nf6 {[%clk 0:03:00.4]} 5. Nc3 {[%clk 0:03:00.6]}
5... a6 {[%clk 0:03:00.8]} 6. Bc4 {[%clk 0:03:01.1]} 6... Nbd7 {[%clk 0:03:00]}
7. O-O {[%clk 0:03:00.9]} 7... Qc7 {[%clk 0:02:59.1]} 8. Bb3 {[%clk 0:02:59.6]}
8... Nc5 {[%clk 0:02:59.3]} 9. Re1 {[%clk 0:02:59.3]} 9... e6 {[%clk 0:02:58.3]}
10. f4 {[%clk 0:02:56.1]} 10... Be7 {[%clk 0:02:54.7]} 11. Be3 {[%clk 0:02:55]}
11... Nfxe4 {[%clk 0:02:52.6]} 12. Nxe4 {[%clk 0:02:54.7]} 12... Nxe4 {[%clk
0:02:53.5]} 13. Qf3 {[%clk 0:02:48.2]} 13... Nc5 {[%clk 0:02:50.3]} 14. f5
{[%clk 0:02:47.3]} 14... e5 {[%clk 0:02:45.6]} 15. Ne2 {[%clk 0:02:45.2]} 15...
Nxb3 {[%clk 0:02:43.7]} 16. cxb3 {[%clk 0:02:43.8]} 16... O-O {[%clk 0:02:42.8]}
17. Rac1 {[%clk 0:02:43.4]} 17... Qa5 {[%clk 0:02:38.4]} 18. a3 {[%clk
0:02:40.5]} 18... d5 {[%clk 0:02:38.6]} 19. b4 {[%clk 0:02:40.1]} 19... Qd8
{[%clk 0:02:38.2]} 20. Rcd1 {[%clk 0:02:38.6]} 20... d4 {[%clk 0:02:36.2]} 21.
Ng3 {[%clk 0:02:28.6]} 21... Rb8 {[%clk 0:02:24.4]} 22. Ne4 {[%clk 0:02:22.9]}
22... b5 {[%clk 0:02:18.1]} 23. Rf1 {[%clk 0:02:15.1]} 23... Bb7 {[%clk
0:02:13.6]} 24. Qg4 {[%clk 0:02:13.4]} 24... f6 {[%clk 0:02:02]} 25. Bh6 {[%clk
0:02:11.6]} 25... Rf7 {[%clk 0:01:59.7]} 26. Nc5 {[%clk 0:02:01.8]} 26... Bxc5
{[%clk 0:01:51.8]} 27. bxc5 {[%clk 0:02:02.7]} 27... e4 {[%clk 0:01:50.9]} 28.
h4 {[%clk 0:01:50.7]} 28... Qd5 {[%clk 0:01:45.2]} 29. Bf4 {[%clk 0:01:48.5]}
29... Qxc5 {[%clk 0:01:39.1]} 30. Bxb8 {[%clk 0:01:46.8]} 30... Rd7 {[%clk
0:01:35]} 31. Bf4 {[%clk 0:01:42.5]} 31... Qe7 {[%clk 0:01:28.7]} 32. Rfe1
{[%clk 0:01:39.5]} 32... e3 {[%clk 0:01:26.2]} 33. h5 {[%clk 0:01:36.8]} 33...
Qe4 {[%clk 0:01:06.8]} 34. Rxe3 {[%clk 0:01:01.2]} 34... Qc6 {[%clk 0:00:50]}
35. Re8+ {[%clk 0:00:55.3]} 35... Kf7 {[%clk 0:00:49.2]} 36. Qe2 {[%clk
0:00:54.5]} 36... Qxg2+ {[%clk 0:00:40.7]} 37. Qxg2 {[%clk 0:00:53.1]} 37...
Bxg2 {[%clk 0:00:41.6]} 38. Kxg2 {[%clk 0:00:53.6]} 38... Kxe8 {[%clk
0:00:41.4]} 39. Kf3 {[%clk 0:00:53.6]} 39... Kf7 {[%clk 0:00:39.1]} 40. h6
{[%clk 0:00:36.8]} 40... g5 {[%clk 0:00:35.4]} 41. fxg6+ {[%clk 0:00:35.1]}
41... hxg6 {[%clk 0:00:35.3]} 42. Rh1 {[%clk 0:00:24.9]} 42... Rd8 {[%clk
0:00:29.8]} 43. Ke4 {[%clk 0:00:24.2]} 43... g5 {[%clk 0:00:25.9]} 44. Bd2
{[%clk 0:00:23.4]} 44... Kg6 {[%clk 0:00:21.6]} 45. h7 {[%clk 0:00:22.6]} 45...
Rh8 {[%clk 0:00:17.6]} 46. Kxd4 {[%clk 0:00:22.9]} 46... Rxh7 {[%clk 0:00:16.7]}
47. Rxh7 {[%clk 0:00:21.9]} 47... Kxh7 {[%clk 0:00:17.6]} 48. Ke4 {[%clk
0:00:22.1]} 48... Kg6 {[%clk 0:00:17.7]} 49. Kf3 {[%clk 0:00:21.6]} 49... Kf5
{[%clk 0:00:14.7]} 50. Bc3 {[%clk 0:00:20.4]} 50... Ke6 {[%clk 0:00:14.4]} 51.
Kg4 {[%clk 0:00:20.6]} 51... a5 {[%clk 0:00:11.5]} 52. b4 {[%clk 0:00:19.6]}
52... a4 {[%clk 0:00:10.8]} 53. Bd4 {[%clk 0:00:19.9]} 53... Kd5 {[%clk
0:00:09.8]} 54. Bxf6 {[%clk 0:00:19.3]} 54... Kc4 {[%clk 0:00:10.7]} 55. Bxg5
{[%clk 0:00:19.2]} 55... Kb3 {[%clk 0:00:10.9]} 56. Bc1 {[%clk 0:00:19.1]} 56...
Kc2 {[%clk 0:00:11.2]} 57. Be3 {[%clk 0:00:18.8]} 57... Kb3 {[%clk 0:00:11.7]}
58. Kf4 {[%clk 0:00:19.2]} 58... Kxa3 {[%clk 0:00:11.9]} 59. Ke4 {[%clk
0:00:18.4]} 59... Kxb4 {[%clk 0:00:11.2]} 60. Kd3 {[%clk 0:00:19.1]} 60... Kb3
{[%clk 0:00:11.5]} 61. Bd4 {[%clk 0:00:18.6]} 61... a3 {[%clk 0:00:10.7]} 62.
Ba1 {[%clk 0:00:18.6]} 62... b4 {[%clk 0:00:10.1]} 63. Kd2 {[%clk 0:00:18]}
63... Ka2 {[%clk 0:00:10.8]} 64. Bd4 {[%clk 0:00:18.1]} 64... b3 {[%clk
0:00:11.3]} 65. Kc1 {[%clk 0:00:14.1]} 65... b2+ {[%clk 0:00:12.2]} 0-1

[Event "Early-Titled-Tuesday-Blitz-April-23-2024"]
[Site "Chess.com"]
[Date "2024.04.23"]
[Round "3"]
[White "Fh2411"]
[Black "JiiHart"]
[Result "1-0"]
[WhiteElo "2565"]
[BlackElo "2180"]
[TimeControl "180+1"]
[EndTime "8:30:03 PDT"]
[Termination "Fh2411 won on time"]

1. d4 {[%clk 0:03:00.9]} 1... d5 {[%clk 0:02:59.3]} 2. c4 {[%clk 0:02:58.4]}
2... c5 {[%clk 0:02:59.3]} 3. cxd5 {[%clk 0:02:50.1]} 3... Qxd5 {[%clk
0:02:56.3]} 4. Nf3 {[%clk 0:02:49.3]} 4... cxd4 {[%clk 0:02:55.2]} 5. Qxd4
{[%clk 0:02:49.2]} 5... Qxd4 {[%clk 0:02:51.9]} 6. Nxd4 {[%clk 0:02:50.1]} 6...
a6 {[%clk 0:02:52.4]} 7. Nc3 {[%clk 0:02:40.2]} 7... Nf6 {[%clk 0:02:41.5]} 8.
Bg5 {[%clk 0:02:34.6]} 8... e6 {[%clk 0:02:40.1]} 9. e3 {[%clk 0:02:22]} 9...
Bb4 {[%clk 0:02:37.2]} 10. Bxf6 {[%clk 0:02:21.1]} 10... gxf6 {[%clk 0:02:35.2]}
11. Rc1 {[%clk 0:02:19.4]} 11... Bd7 {[%clk 0:02:27.9]} 12. a3 {[%clk
0:02:12.1]} 12... Be7 {[%clk 0:02:25.4]} 13. Be2 {[%clk 0:02:05.2]} 13... Nc6
{[%clk 0:02:25.3]} 14. Nb3 {[%clk 0:01:43.3]} 14... f5 {[%clk 0:02:18.3]} 15. g3
{[%clk 0:01:42.2]} 15... O-O {[%clk 0:02:15.2]} 16. O-O {[%clk 0:01:42.3]} 16...
Rfd8 {[%clk 0:02:14.2]} 17. Rfd1 {[%clk 0:01:42]} 17... Be8 {[%clk 0:02:14.3]}
18. Bf3 {[%clk 0:01:38.2]} 18... Rac8 {[%clk 0:02:09.2]} 19. h4 {[%clk
0:01:28.1]} 19... b5 {[%clk 0:02:08.4]} 20. Ne2 {[%clk 0:01:25.2]} 20... Rxd1+
{[%clk 0:01:58.5]} 21. Rxd1 {[%clk 0:01:25.2]} 21... Ne5 {[%clk 0:01:56]} 22.
Bb7 {[%clk 0:01:24.9]} 22... Rc2 {[%clk 0:01:55.3]} 23. Rd2 {[%clk 0:01:20.1]}
23... Rc7 {[%clk 0:01:39.7]} 24. Bg2 {[%clk 0:01:14.4]} 24... Nc4 {[%clk
0:01:38.3]} 25. Rc2 {[%clk 0:01:14.3]} 25... Bf6 {[%clk 0:01:07.9]} 26. Na5
{[%clk 0:01:08.1]} 26... Rd7 {[%clk 0:00:53.5]} 27. Nxc4 {[%clk 0:01:04.6]}
27... bxc4 {[%clk 0:00:52.9]} 28. Nc3 {[%clk 0:00:58.6]} 28... Rd3 {[%clk
0:00:41]} 29. Bf1 {[%clk 0:00:56]} 29... Rd8 {[%clk 0:00:08.2]} 30. Bxc4 {[%clk
0:00:54.7]} 30... a5 {[%clk 0:00:09.1]} 31. Be2 {[%clk 0:00:47.2]} 31... Rb8
{[%clk 0:00:09]} 32. Bc4 {[%clk 0:00:28.8]} 32... Bc6 {[%clk 0:00:09.2]} 33. b3
{[%clk 0:00:23.3]} 33... Be4 {[%clk 0:00:08.8]} 34. Nxe4 {[%clk 0:00:22.4]}
34... fxe4 {[%clk 0:00:09.7]} 35. Rd2 {[%clk 0:00:21.8]} 35... Be7 {[%clk
0:00:10.1]} 36. Rd4 {[%clk 0:00:17.6]} 36... Bxa3 {[%clk 0:00:09.1]} 37. Rxe4
{[%clk 0:00:18]} 37... Rd8 {[%clk 0:00:09.3]} 38. Rg4+ {[%clk 0:00:14.4]} 38...
Kf8 {[%clk 0:00:09]} 39. Rf4 {[%clk 0:00:14.6]} 39... Rd1+ {[%clk 0:00:08.2]}
40. Kg2 {[%clk 0:00:14.8]} 40... Bd6 {[%clk 0:00:08]} 41. Rg4 {[%clk 0:00:11.3]}
41... Bc5 {[%clk 0:00:07.3]} 42. Rg5 {[%clk 0:00:10.6]} 42... Bb6 {[%clk
0:00:06.8]} 43. Rb5 {[%clk 0:00:10.7]} 43... Bd8 {[%clk 0:00:07.1]} 44. Kf3
{[%clk 0:00:07.5]} 44... Rd2 {[%clk 0:00:06.9]} 45. Rb7 {[%clk 0:00:07.5]} 45...
Rb2 {[%clk 0:00:05.1]} 46. h5 {[%clk 0:00:06.7]} 46... Be7 {[%clk 0:00:04.5]}
47. e4 {[%clk 0:00:05.3]} 47... Bb4 {[%clk 0:00:04.1]} 48. Rb8+ {[%clk
0:00:01.4]} 48... Kg7 {[%clk 0:00:01.7]} 49. Rb7 {[%clk 0:00:02.3]} 49... a4
{[%clk 0:00:01.1]} 50. bxa4 {[%clk 0:00:01.6]} 1-0

[Event "Early-Titled-Tuesday-Blitz-April-23-2024"]
[Site "Chess.com"]
[Date "2024.04.23"]
[Round "3"]
[White "KnightDuta"]
[Black "wonderfultime"]
[Result "0-1"]
[WhiteElo "2769"]
[BlackElo "3061"]
[TimeControl "180+1"]
[EndTime "8:30:08 PDT"]
[Termination "wonderfultime won on time"]

1. e4 {[%clk 0:03:00.9]} 1... e5 {[%clk 0:03:00]} 2. Nf3 {[%clk 0:02:59.5]} 2...
Nc6 {[%clk 0:03:00.3]} 3. Bc4 {[%clk 0:02:59.9]} 3... Bc5 {[%clk 0:03:00.2]} 4.
O-O {[%clk 0:02:59.6]} 4... d6 {[%clk 0:02:59.6]} 5. c3 {[%clk 0:02:53.1]} 5...
Nf6 {[%clk 0:02:59.7]} 6. d3 {[%clk 0:02:53.7]} 6... a6 {[%clk 0:02:59.3]} 7.
Bb3 {[%clk 0:02:52.8]} 7... Ba7 {[%clk 0:02:59.1]} 8. Nbd2 {[%clk 0:02:52.1]}
8... O-O {[%clk 0:02:57.5]} 9. h3 {[%clk 0:02:52]} 9... Be6 {[%clk 0:02:56.2]}
10. Bc2 {[%clk 0:02:52.1]} 10... d5 {[%clk 0:02:51.4]} 11. exd5 {[%clk 0:02:53]}
11... Bxd5 {[%clk 0:02:46.1]} 12. Re1 {[%clk 0:02:53.7]} 12... Re8 {[%clk
0:02:46.6]} 13. Nf1 {[%clk 0:02:53.7]} 13... e4 {[%clk 0:02:42.8]} 14. dxe4
{[%clk 0:02:43.2]} 14... Bxe4 {[%clk 0:02:43.7]} 15. Bxe4 {[%clk 0:02:30.1]}
15... Nxe4 {[%clk 0:02:36.9]} 16. Be3 {[%clk 0:02:30.4]} 16... Bc5 {[%clk
0:02:25.5]} 17. Qc2 {[%clk 0:02:21]} 17... Bd6 {[%clk 0:02:12.5]} 18. N1d2
{[%clk 0:01:53.5]} 18... Nxd2 {[%clk 0:02:04.6]} 19. Bxd2 {[%clk 0:01:54.4]}
19... h6 {[%clk 0:02:01.2]} 20. Rxe8+ {[%clk 0:01:49.4]} 20... Qxe8 {[%clk
0:02:02.1]} 21. Re1 {[%clk 0:01:50.1]} 21... Qd7 {[%clk 0:02:01.2]} 22. Qe4
{[%clk 0:01:46]} 22... Rd8 {[%clk 0:01:58.6]} 23. Bf4 {[%clk 0:01:41.6]} 23...
Bc5 {[%clk 0:01:52.1]} 24. Ne5 {[%clk 0:01:04.1]} 24... Nxe5 {[%clk 0:01:50.4]}
25. Qxe5 {[%clk 0:01:05]} 25... Bb6 {[%clk 0:01:27.3]} 26. Qe4 {[%clk
0:01:03.6]} 26... c6 {[%clk 0:01:06.4]} 27. Qb4 {[%clk 0:01:02.3]} 27... Ba7
{[%clk 0:01:05.2]} 28. Be3 {[%clk 0:00:51.1]} 28... Bb8 {[%clk 0:01:03.1]} 29.
Bb6 {[%clk 0:00:42.1]} 29... Qd2 {[%clk 0:00:33.7]} 30. Qe4 {[%clk 0:00:35.7]}
30... Rd5 {[%clk 0:00:29.2]} 31. Qe8+ {[%clk 0:00:08]} 31... Kh7 {[%clk
0:00:29.3]} 32. g3 {[%clk 0:00:08.6]} 32... Bd6 {[%clk 0:00:28.3]} 33. Bd4
{[%clk 0:00:08]} 33... Bc5 {[%clk 0:00:11.8]} 34. Re2 {[%clk 0:00:06.5]} 34...
Qd1+ {[%clk 0:00:11.6]} 35. Re1 {[%clk 0:00:07]} 35... Qf3 {[%clk 0:00:12.3]}
36. Qe4+ {[%clk 0:00:06.8]} 36... Qxe4 {[%clk 0:00:12.6]} 37. Rxe4 {[%clk
0:00:07.7]} 37... Bxd4 {[%clk 0:00:13.5]} 38. Rxd4 {[%clk 0:00:08.6]} 38... Rxd4
{[%clk 0:00:14.1]} 39. cxd4 {[%clk 0:00:09.5]} 39... Kg6 {[%clk 0:00:15]} 40. f3
{[%clk 0:00:09.7]} 40... Kf6 {[%clk 0:00:14.5]} 41. Kf2 {[%clk 0:00:10.6]} 41...
Ke6 {[%clk 0:00:15.4]} 42. Ke3 {[%clk 0:00:10.9]} 42... Kd5 {[%clk 0:00:16.3]}
43. Kd3 {[%clk 0:00:11.2]} 43... h5 {[%clk 0:00:13.2]} 44. b4 {[%clk 0:00:09.4]}
44... g5 {[%clk 0:00:12.2]} 45. h4 {[%clk 0:00:06.7]} 45... f6 {[%clk
0:00:11.5]} 46. a3 {[%clk 0:00:01.4]} 46... b6 {[%clk 0:00:09.5]} 47. a4 {[%clk
0:00:01.3]} 47... a5 {[%clk 0:00:10]} 48. bxa5 {[%clk 0:00:01.2]} 48... bxa5
{[%clk 0:00:10.9]} 49. Kc3 {[%clk 0:00:01.7]} 49... f5 {[%clk 0:00:03.8]} 50.
hxg5 {[%clk 0:00:01.4]} 50... f4 {[%clk 0:00:04.5]} 0-1

[Event "Early-Titled-Tuesday-Blitz-April-23-2024"]
[Site "Chess.com"]
[Date "2024.04.23"]
[Round "3"]
[White "dontcatchmeifyoucant"]
[Black "Evan_Attaker"]
[Result "1/2-1/2"]
[WhiteElo "2351"]
[BlackElo "2596"]
[TimeControl "180+1"]
[EndTime "8:30:10 PDT"]
[Termination "Game drawn - insufficient material"]

1. e4 {[%clk 0:03:00.9]} 1... c5 {[%clk 0:02:59.1]} 2. Nf3 {[%clk 0:03:00.6]}
2... d6 {[%clk 0:02:59.3]} 3. d4 {[%clk 0:03:01]} 3... cxd4 {[%clk 0:03:00.2]}
4. Nxd4 {[%clk 0:03:01.9]} 4... Nf6 {[%clk 0:03:00.5]} 5. Nc3 {[%clk 0:03:02]}
5... g6 {[%clk 0:03:01.1]} 6. Be3 {[%clk 0:02:59.9]} 6... Bg7 {[%clk 0:03:01.7]}
7. f3 {[%clk 0:02:56.6]} 7... O-O {[%clk 0:03:01.1]} 8. Qd2 {[%clk 0:02:57.3]}
8... Nc6 {[%clk 0:02:51.2]} 9. Bc4 {[%clk 0:02:57.1]} 9... Nxd4 {[%clk 0:02:38]}
10. Bxd4 {[%clk 0:02:57]} 10... Be6 {[%clk 0:02:31]} 11. Bxe6 {[%clk 0:02:56.6]}
11... fxe6 {[%clk 0:02:31.9]} 12. O-O-O {[%clk 0:02:55.8]} 12... Qa5 {[%clk
0:02:27.5]} 13. Rhe1 {[%clk 0:02:38.3]} 13... Nd7 {[%clk 0:02:22.7]} 14. Bxg7
{[%clk 0:02:37.3]} 14... Kxg7 {[%clk 0:02:23.6]} 15. e5 {[%clk 0:02:23.3]} 15...
d5 {[%clk 0:02:20.8]} 16. Kb1 {[%clk 0:02:16.1]} 16... Rac8 {[%clk 0:02:12.7]}
17. Ne2 {[%clk 0:02:11.7]} 17... Qxd2 {[%clk 0:02:07.8]} 18. Rxd2 {[%clk
0:02:12.6]} 18... Kf7 {[%clk 0:02:08]} 19. Nd4 {[%clk 0:02:11.4]} 19... Nb8
{[%clk 0:02:06.2]} 20. c3 {[%clk 0:02:07.5]} 20... Rc4 {[%clk 0:01:59.4]} 21.
Re3 {[%clk 0:02:05.6]} 21... Nc6 {[%clk 0:01:56.8]} 22. b3 {[%clk 0:02:01]}
22... Rc5 {[%clk 0:01:56.6]} 23. Ne2 {[%clk 0:01:56.9]} 23... a5 {[%clk
0:01:49.6]} 24. Kb2 {[%clk 0:01:55.2]} 24... b5 {[%clk 0:01:36.8]} 25. a3 {[%clk
0:01:27.8]} 25... b4 {[%clk 0:01:34]} 26. axb4 {[%clk 0:01:27.9]} 26... axb4
{[%clk 0:01:34.9]} 27. cxb4 {[%clk 0:01:28.6]} 27... Nxb4 {[%clk 0:01:34.3]} 28.
Rc3 {[%clk 0:01:24.4]} 28... Rfc8 {[%clk 0:01:17.3]} 29. f4 {[%clk 0:01:10.3]}
29... h5 {[%clk 0:01:11.7]} 30. Rd4 {[%clk 0:01:07.3]} 30... Rxc3 {[%clk
0:01:07.9]} 31. Nxc3 {[%clk 0:01:08.2]} 31... Nc6 {[%clk 0:01:07.8]} 32. Ra4
{[%clk 0:01:08.1]} 32... g5 {[%clk 0:01:07.2]} 33. g3 {[%clk 0:01:03.5]} 33...
h4 {[%clk 0:01:06.1]} 34. b4 {[%clk 0:00:59.5]} 34... hxg3 {[%clk 0:01:05.1]}
35. hxg3 {[%clk 0:00:59.8]} 35... gxf4 {[%clk 0:01:05.7]} 36. gxf4 {[%clk
0:01:00.7]} 36... Rb8 {[%clk 0:00:51.5]} 37. b5 {[%clk 0:00:59.6]} 37... d4
{[%clk 0:00:51.6]} 38. Kc2 {[%clk 0:00:53.5]} 38... Nxe5 {[%clk 0:00:35]} 39.
Rxd4 {[%clk 0:00:51.5]} 39... Ng6 {[%clk 0:00:33.8]} 40. Rb4 {[%clk 0:00:45.3]}
40... e5 {[%clk 0:00:29.1]} 41. f5 {[%clk 0:00:42.9]} 41... Nf4 {[%clk
0:00:22.4]} 42. b6 {[%clk 0:00:43]} 42... e6 {[%clk 0:00:18.4]} 43. fxe6+ {[%clk
0:00:37.9]} 43... Kxe6 {[%clk 0:00:19.3]} 44. b7 {[%clk 0:00:30.8]} 44... Kd6
{[%clk 0:00:17.7]} 45. Kd2 {[%clk 0:00:20.5]} 45... Kc6 {[%clk 0:00:12.7]} 46.
Ke3 {[%clk 0:00:19]} 46... Ne6 {[%clk 0:00:12.1]} 47. Na4 {[%clk 0:00:14]} 47...
Nc7 {[%clk 0:00:09]} 48. Rb6+ {[%clk 0:00:12.4]} 48... Kd5 {[%clk 0:00:08.8]}
49. Nc3+ {[%clk 0:00:10]} 49... Kc4 {[%clk 0:00:08.6]} 50. Kd2 {[%clk 0:00:07]}
50... Kc5 {[%clk 0:00:05.3]} 51. Na4+ {[%clk 0:00:06.6]} 51... Kd5 {[%clk
0:00:05.9]} 52. Ke3 {[%clk 0:00:05.5]} 52... Ne6 {[%clk 0:00:05]} 53. Nc3+
{[%clk 0:00:04.7]} 53... Kc4 {[%clk 0:00:04.9]} 54. Rc6+ {[%clk 0:00:03.7]}
54... Kb3 {[%clk 0:00:02.7]} 55. Nd5 {[%clk 0:00:01.3]} 55... Rxb7 {[%clk
0:00:03.3]} 56. Rxe6 {[%clk 0:00:01.5]} 56... Rb5 {[%clk 0:00:04.1]} 57. Ke4
{[%clk 0:00:02.4]} 57... Kc4 {[%clk 0:00:04.9]} 58. Rxe5 {[%clk 0:00:02.4]}
58... Kb3 {[%clk 0:00:04.7]} 59. Ne3 {[%clk 0:00:02.7]} 59... Rxe5+ {[%clk
0:00:04.8]} 60. Kxe5 {[%clk 0:00:03.6]} 1/2-1/2